bitfinex/quotes_SOLUSD_20220116
["timestamp","ask_amount","ask_price","bid_price","bid_amount"]
[1642337249113,6.65778457,148.41,148.4,0.26]
[1642337249314,6.65778457,148.41,148.39,2.17024593]
[1642337250014,6.06279894,148.4,148.39,2.17024593]
[1642337250414,55.75002278,148.4,148.39,2.17024593]
[1642337251216,55.75002278,148.4,148.39,0.25]
[1642337251417,55.75002278,148.4,148.38,2.17024593]
[1642337251815,53.75002278,148.4,148.38,2.17024593]
[1642337252316,6.65778457,148.39,148.38,2.17024593]
[1642337253119,6.65778457,148.39,148.38,0.25]
[1642337253519,6.65778457,148.39,148.37,2.17024593]
[1642337258723,23.3261,148.47,148.38,49.26]
[1642337258923,6.91778457,148.46,148.38,51.511601]
[1642337259354,12.65778457,148.46,148.38,51.511601]
[1642337259554,24.3336,148.45,148.39,0.91067299]
[1642337259752,24.3336,148.45,148.39,2.83091892]
[1642337259951,30.3336,148.45,148.4,0.26]
[1642337261861,6.65778457,148.44,148.4,0.26]
[1642337262653,6.65778457,148.44,148.4,2.18024593]
[1642337264056,6.65778457,148.44,148.4,2.17024593]
[1642337265459,6.65778457,148.44,148.41,0.26]
[1642337266260,4.06279894,148.43,148.41,0.26]
[1642337266859,6.65778457,148.42,148.41,0.26]
[1642337267459,6.65778457,148.42,148.41,2.261601]
[1642337267661,6.65778457,148.42,148.41,2.511601]
[1642337269861,30.3336,148.45,148.41,2.511601]
[1642337270061,6.65778457,148.44,148.41,2.511601]
[1642337270462,4.06279894,148.43,148.41,2.511601]
[1642337270863,6.65778457,148.44,148.41,2.511601]
[1642337272365,6.65778457,148.44,148.41,8.511601]
[1642337272564,6.65778457,148.44,148.41,2.511601]
[1642337281475,4.06279894,148.43,148.41,2.511601]
[1642337281887,6.65778457,148.42,148.41,2.511601]
[1642337282287,6.65778457,148.42,148.41,2.251601]
[1642337283089,10.72058351,148.42,148.41,0.25]
[1642337283291,10.72058351,148.42,148.39,2.17024593]
[1642337283490,10.72058351,148.42,148.4,2.001601]
[1642337283690,10.72058351,148.42,148.4,2.261601]
[1642337283890,6.65778457,148.42,148.4,2.511601]
[1642337284891,6.65778457,148.44,148.4,2.511601]
[1642337285396,6.65778457,148.44,148.4,4.43184693]
[1642337286418,6.65778457,148.44,148.4,2.511601]
[1642337287017,6.65778457,148.44,148.4,4.43184693]
[1642337290321,6.65778457,148.44,148.41,1.92024593]
[1642337290524,4.06279894,148.43,148.41,1.92024593]
[1642337290722,4.06279894,148.43,148.41,2.17024593]
[1642337290922,6.65778457,148.42,148.41,2.17024593]
[1642337291325,6.65778457,148.42,148.41,2.43024593]
[1642337291726,6.65778457,148.42,148.41,0.51]
[1642337291929,6.65778457,148.42,148.41,0.26]
[1642337293335,6.65778457,148.42,148.4,1.92024593]
[1642337293531,6.65778457,148.42,148.41,3.92184693]
[1642337293729,6.65778457,148.42,148.41,1.92024593]
[1642337293932,3.03219997,148.42,148.41,1.92024593]
[1642337294132,3.03219997,148.42,148.4,1.92024593]
[1642337294335,1.03059897,148.41,148.4,1.92024593]
[1642337294534,1.03059897,148.41,148.4,2.17024593]
[1642337294733,1.03059897,148.41,148.4,2.43024593]
[1642337296433,1.03059897,148.41,148.4,2.18024593]
[1642337297362,7.68838354,148.41,148.4,2.18024593]
[1642337297763,7.68838354,148.41,148.4,2.43024593]
[1642337300563,6.65778457,148.41,148.4,4.43184693]
[1642337301769,6.65778457,148.44,148.4,4.43184693]
[1642337306774,6.65778457,148.44,148.4,2.43024593]
[1642337308278,6.65778457,148.44,148.41,0.26]
[1642337308678,4.06279894,148.43,148.41,0.26]
[1642337309279,6.65778457,148.42,148.41,0.26]
[1642337309479,6.65778457,148.42,148.41,2.18024593]
[1642337309982,6.65778457,148.42,148.41,2.43024593]
[1642337312184,6.65778457,148.42,148.41,4.43184693]
[1642337312785,6.65778457,148.44,148.41,4.43184693]
[1642337317994,6.65778457,148.44,148.41,71.91184693]
[1642337318195,4.06279894,148.43,148.41,71.91184693]
[1642337318391,6.65778457,148.46,148.41,71.91184693]
[1642337318591,6.65778457,148.46,148.42,1.92024593]
[1642337318791,6.65778457,148.46,148.43,3.21585561]
[1642337318993,6.65778457,148.46,148.43,3.47585561]
[1642337319191,6.65778457,148.46,148.43,0.51]
[1642337319391,4.06279894,148.45,148.43,0.51]
[1642337320391,4.06279894,148.45,148.43,2.261601]
[1642337320592,4.06279894,148.45,148.43,2.511601]
[1642337320792,6.65778457,148.46,148.43,2.511601]
[1642337321192,6.65778457,148.46,148.43,2.001601]
[1642337321595,4.06279894,148.45,148.43,2.001601]
[1642337321797,4.32279894,148.45,148.43,2.001601]
[1642337321995,73.65778457,148.44,148.43,2.001601]
[1642337322793,73.91778457,148.44,148.4,1.92024593]
[1642337323019,0.26,148.43,148.4,1.92024593]
[1642337323220,0.26,148.43,148.4,2.17024593]
[1642337323620,46.21035834,148.43,148.4,2.17024593]
[1642337325022,6.65778457,148.42,148.4,2.17024593]
[1642337325228,6.65778457,148.42,148.4,1.92024593]
[1642337325423,79.26,148.41,148.4,1.92024593]
[1642337326023,79.26,148.41,148.38,1.92024593]
[1642337326225,3.03219997,148.4,148.38,1.92024593]
[1642337326424,6.06439994,148.4,148.38,2.17024593]
[1642337326825,6.06439994,148.4,148.38,0.25]
[1642337327225,6.06439994,148.4,148.37,2.17024593]
[1642337328325,6.65778457,148.39,148.37,2.17024593]
[1642337331327,6.65778457,148.39,148.38,35.26]
[1642337331527,9.68998454,148.39,148.38,35.26]
[1642337331727,3.03219997,148.39,148.38,35.51]
[1642337332327,3.03219997,148.39,148.38,37.43024593]
[1642337332727,6.65778457,148.41,148.38,37.43024593]
[1642337333828,6.65778457,148.41,148.38,43.43024593]
[1642337334229,6.65778457,148.41,148.39,1.92024593]
[1642337334430,6.65778457,148.41,148.4,0.26]
[1642337334830,6.65778457,148.46,148.4,0.26]
[1642337335230,6.65778457,148.46,148.4,3.16544586]
[1642337335428,6.65778457,148.46,148.4,3.41544586]
[1642337336433,6.65778457,148.46,148.4,2.91544586]
[1642337338434,6.65778457,148.46,148.41,0.26]
[1642337342038,6.15778457,148.46,148.41,0.26]
[1642337345541,47.94764816,148.46,148.41,0.26]
[1642337346147,6.15778457,148.46,148.41,0.26]
[1642337352052,6.15778457,148.46,148.41,2.18024593]
[1642337352453,6.15778457,148.46,148.41,8.43024593]
[1642337352853,6.15778457,148.46,148.43,19.57446144]
[1642337353353,6.15778457,148.46,148.44,0.26]
[1642337359583,6.15778457,148.46,148.44,1.37777456]
[1642337359783,6.15778457,148.47,148.44,0.51]
[1642337359982,6.15778457,148.47,148.44,6.26]
[1642337360184,6.15778457,148.47,148.44,73.74]
[1642337360583,6.15778457,148.47,148.45,1.11777456]
[1642337360784,6.15778457,148.47,148.44,73.74]
[1642337361490,6.15778457,148.47,148.44,73.99]
[1642337361687,6.15778457,148.47,148.44,6.25]
[1642337361887,6.15778457,148.47,148.44,0.25]
[1642337362088,6.06439994,148.46,148.44,0.25]
[1642337362288,3.03219997,148.46,148.44,1.92024593]
[1642337362488,6.15778457,148.47,148.44,1.92024593]
[1642337362688,6.15778457,148.47,148.44,2.17024593]
[1642337362988,6.15778457,148.51,148.44,1.92024593]
[1642337363388,0.26,148.5,148.44,1.92024593]
[1642337363790,22.9502,148.5,148.42,24.06083792]
[1642337363991,22.9502,148.5,148.43,0.26]
[1642337364689,22.9502,148.5,148.43,2.18024593]
[1642337364889,22.9502,148.5,148.43,2.43024593]
[1642337365889,22.6902,148.5,148.43,8.43024593]
[1642337366089,6.15778457,148.49,148.43,2.43024593]
[1642337366389,6.15778457,148.49,148.43,8.43024593]
[1642337366591,6.15778457,148.49,148.43,2.43024593]
[1642337366790,42.39519994,148.49,148.43,2.43024593]
[1642337367589,6.15778457,148.49,148.43,2.43024593]
[1642337369093,6.15778457,148.49,148.43,9.54802049]
[1642337369291,6.15778457,148.49,148.43,3.54802049]
[1642337369490,6.15778457,148.49,148.43,9.54802049]
[1642337369691,6.15778457,148.49,148.43,3.54802049]
[1642337369892,6.15778457,148.49,148.43,9.54802049]
[1642337370291,6.15778457,148.49,148.44,1.92024593]
[1642337370692,6.15778457,148.49,148.45,0.26]
[1642337374995,45.84234566,148.48,148.44,0.26]
[1642337375196,45.84234566,148.48,148.43,2.17024593]
[1642337375397,6.15778457,148.49,148.43,2.17024593]
[1642337375595,6.15778457,148.47,148.43,2.17024593]
[1642337376700,6.15778457,148.47,148.44,0.26]
[1642337376899,6.06439994,148.46,148.44,0.26]
[1642337377903,6.15778457,148.47,148.44,0.26]
[1642337378307,3.03219997,148.46,148.44,0.26]
[1642337378503,6.06439994,148.46,148.44,0.26]
[1642337378703,6.15778457,148.45,148.44,0.26]
[1642337379106,6.15778457,148.45,148.43,2.17024593]
[1642337379504,3.03219997,148.44,148.43,0.25]
[1642337379805,6.15778457,148.45,148.43,0.25]
[1642337380003,6.15778457,148.45,148.42,24.31083792]
[1642337380805,3.03219997,148.44,148.42,24.31083792]
[1642337381004,3.03219997,148.43,148.42,24.31083792]
[1642337381505,3.03219997,148.44,148.42,24.31083792]
[1642337381907,61.28239868,148.48,148.43,0.26]
[1642337382505,6.15778457,148.47,148.43,0.26]
[1642337383236,6.15778457,148.47,148.43,2.15728615]
[1642337383433,6.15778457,148.47,148.43,2.40728615]
[1642337387038,6.15778457,148.47,148.43,69.88728615]
[1642337387242,1.90854866,148.54,148.45,53.0]
[1642337387439,25.15734866,148.54,148.46,67.74]
[1642337387839,25.15734866,148.54,148.46,73.99]
[1642337388039,23.2488,148.54,148.46,73.99]
[1642337388239,64.04988439,148.54,148.47,16.70460918]
[1642337388440,64.04988439,148.54,148.48,0.26]
[1642337389440,64.04988439,148.54,148.44,1.89728615]
[1642337389642,70.04988439,148.54,148.44,1.89728615]
[1642337389843,70.04988439,148.54,148.47,1.89728615]
[1642337390643,0.26,148.53,148.47,1.89728615]
[1642337391041,0.26,148.53,148.44,24.15327674]
[1642337391241,0.26,148.53,148.44,24.40327674]
[1642337391446,70.29988439,148.54,148.44,24.40327674]
[1642337391844,70.29988439,148.54,148.45,0.26]
[1642337392043,70.29988439,148.54,148.44,24.40327674]
[1642337392842,0.26,148.53,148.44,24.40327674]
[1642337393544,0.26,148.53,148.45,0.26]
[1642337394143,64.04988439,148.54,148.45,0.26]
[1642337394443,23.2488,148.54,148.45,0.26]
[1642337394844,23.2488,148.54,148.45,67.74]
[1642337395047,23.2488,148.54,148.45,2.15728615]
[1642337395245,23.2488,148.54,148.45,2.40728615]
[1642337395447,49.13626951,148.53,148.45,2.40728615]
[1642337396047,23.2429,148.52,148.45,69.88728615]
[1642337396648,23.2429,148.52,148.46,1.11770755]
[1642337396848,23.2429,148.52,148.47,0.26]
[1642337397651,23.2429,148.52,148.46,0.51]
[1642337397849,23.2429,148.52,148.46,2.40728615]
[1642337398049,23.2429,148.52,148.46,2.15728615]
[1642337398249,23.2429,148.52,148.46,2.40728615]
[1642337399249,23.2429,148.52,148.46,8.40728615]
[1642337399650,23.2429,148.52,148.47,1.11770755]
[1642337399850,23.2429,148.52,148.48,0.26]
[1642337400450,23.2429,148.52,148.47,0.51]
[1642337401053,23.2429,148.52,148.47,0.26]
[1642337401251,35.64324449,148.51,148.47,0.26]
[1642337401450,35.64324449,148.51,148.46,2.14728615]
[1642337401653,23.2429,148.52,148.46,2.14728615]
[1642337401851,0.26,148.51,148.46,4.38485035]
[1642337402252,23.2429,148.52,148.46,2.4875642]
[1642337402754,23.2429,148.52,148.47,0.26]
[1642337402952,65.08186387,148.52,148.47,0.26]
[1642337404654,23.2429,148.52,148.47,0.26]
[1642337405654,42.04843248,148.51,148.46,2.4875642]
[1642337405855,0.26,148.5,148.46,2.4875642]
[1642337406056,0.26,148.5,148.46,2.2375642]
[1642337408156,0.26,148.5,148.46,18.46739032]
[1642337408557,0.26,148.5,148.46,2.2375642]
[1642337413859,0.26,148.5,148.46,5.86113533]
[1642337414463,6.26,148.51,148.46,5.86113533]
[1642337414964,0.25,148.51,148.46,2.2375642]
[1642337415161,6.25,148.51,148.46,2.2375642]
[1642337415864,6.0,148.51,148.46,2.4875642]
[1642337416063,1.90854866,148.55,148.47,1.11770755]
[1642337416261,1.90854866,148.55,148.47,67.74]
[1642337416462,1.90854866,148.55,148.47,0.51]
[1642337417064,47.18825959,148.54,148.47,0.51]
[1642337417266,22.8958,148.53,148.47,0.51]
[1642337417663,22.8958,148.53,148.47,2.15728615]
[1642337417865,22.8958,148.53,148.48,6.45325524]
[1642337418263,22.8958,148.53,148.48,6.70325524]
[1642337420770,0.26,148.52,148.48,6.70325524]
[1642337420972,22.8958,148.53,148.48,6.70325524]
[1642337424574,36.52222304,148.52,148.48,0.25]
[1642337424772,22.8958,148.53,148.47,0.26]
[1642337425576,22.3958,148.53,148.47,0.26]
[1642337425776,22.3958,148.53,148.47,22.55872253]
[1642337425974,22.3958,148.53,148.47,22.80872253]
[1642337426476,22.3958,148.53,148.47,23.92643008]
[1642337426673,22.3958,148.53,148.47,22.80872253]
[1642337427175,22.6458,148.53,148.47,22.55872253]
[1642337427375,0.26,148.52,148.47,22.29872253]
[1642337427577,35.71892291,148.52,148.47,22.54872253]
[1642337427875,0.51,148.52,148.47,22.54872253]
[1642337428877,0.25,148.52,148.48,0.26]
[1642337429177,22.3958,148.53,148.48,0.26]
[1642337429376,22.6458,148.53,148.48,0.26]
[1642337430378,21.3958,148.53,148.48,0.26]
[1642337431809,24.2639,148.57,148.48,0.26]
[1642337431977,30.5139,148.57,148.48,1.38076224]
[1642337432377,30.5139,148.57,148.48,67.99]
[1642337432577,30.5139,148.57,148.48,69.11076224]
[1642337432578,22.5315,148.56,148.48,69.11076224]
[1642337432779,22.5315,148.56,148.48,1.63076224]
[1642337432979,28.7815,148.56,148.48,1.63076224]
[1642337433579,28.7815,148.56,148.48,0.51]
[1642337433981,28.7815,148.56,148.48,0.26]
[1642337434182,0.26,148.55,148.48,0.26]
[1642337435782,0.26,148.55,148.47,22.54872253]
[1642337436983,0.26,148.55,148.47,23.66627598]
[1642337437183,0.26,148.55,148.48,0.26]
[1642337438784,0.26,148.55,148.47,22.54872253]
[1642337439386,0.26,148.55,148.47,28.54872253]
[1642337440289,0.26,148.55,148.48,0.26]
[1642337442490,35.74461897,148.55,148.48,0.26]
[1642337442692,24.3764,148.54,148.47,52.83982253]
[1642337442892,24.6264,148.54,148.47,52.83982253]
[1642337443091,0.26,148.53,148.48,0.26]
[1642337443492,24.6264,148.54,148.48,0.26]
[1642337444791,24.6264,148.54,148.48,6.4]
[1642337445392,24.6264,148.54,148.48,6.65]
[1642337445596,24.6264,148.54,148.48,6.39]
[1642337446092,24.6264,148.54,148.48,0.25]
[1642337446496,24.6264,148.54,148.47,48.73710868]
[1642337446929,24.6264,148.54,148.48,0.26]
[1642337449427,71.49178936,148.54,148.48,0.26]
[1642337449626,24.6264,148.54,148.48,0.26]
[1642337450827,0.25,148.54,148.48,0.26]
[1642337451131,0.25,148.54,148.48,67.74]
[1642337451327,25.0099,148.56,148.48,67.99]
[1642337452228,25.0099,148.56,148.48,0.51]
[1642337452729,25.0099,148.56,148.48,0.26]
[1642337453229,0.26,148.55,148.48,0.26]
[1642337457734,0.26,148.55,148.47,26.18838615]
[1642337457932,0.33,148.55,148.47,1.89728615]
[1642337459132,2.23854866,148.55,148.48,4.69448775]
[1642337459438,48.40701317,148.54,148.48,4.69448775]
[1642337459834,0.26,148.53,148.48,4.69448775]
[1642337460535,26.66844866,148.56,148.48,4.69448775]
[1642337460733,26.66844866,148.56,148.49,0.26]
[1642337461335,24.7599,148.56,148.49,0.26]
[1642337461534,22.5223358,148.56,148.49,0.26]
[1642337462139,26.39134866,148.58,148.49,0.26]
[1642337462343,51.20684866,148.58,148.49,1.37248238]
[1642337462537,51.20684866,148.58,148.49,0.26]
[1642337462938,49.5483,148.58,148.49,0.26]
[1642337463136,41.30780144,148.57,148.49,0.26]
[1642337463338,41.55780144,148.57,148.49,0.26]
[1642337463539,0.25,148.57,148.49,0.26]
[1642337464345,0.25,148.57,148.49,2.15728615]
[1642337464545,40.65588845,148.57,148.49,2.15728615]
[1642337464745,40.90588845,148.57,148.49,8.40728615]
[1642337465141,0.26,148.56,148.49,8.40728615]
[1642337465341,23.2754,148.56,148.49,8.40728615]
[1642337465568,23.0154,148.56,148.49,6.51]
[1642337465741,23.2654,148.56,148.49,6.51]
[1642337465941,23.2654,148.56,148.49,0.51]
[1642337466141,23.2654,148.56,148.49,0.26]
[1642337470345,23.2654,148.56,148.49,1.37133121]
[1642337470550,23.2654,148.56,148.49,7.848]
[1642337470846,23.2654,148.56,148.49,14.098]
[1642337472048,23.2654,148.56,148.49,15.20933121]
[1642337472746,23.2654,148.56,148.49,14.098]
[1642337474551,23.2654,148.56,148.49,15.20933121]
[1642337475552,23.2654,148.56,148.49,14.098]
[1642337475752,23.2654,148.56,148.49,81.578]
[1642337475952,23.2654,148.56,148.49,82.68787513]
[1642337476150,23.2654,148.56,148.49,81.578]
[1642337484089,23.2654,148.56,148.49,81.318]
[1642337485391,23.2654,148.56,148.5,0.26]
[1642337486192,71.73593295,148.56,148.5,0.26]
[1642337486493,23.2654,148.56,148.5,0.26]
[1642337486696,23.2654,148.56,148.51,67.48]
[1642337486893,23.2654,148.56,148.52,0.26]
[1642337487093,0.25,148.56,148.5,0.26]
[1642337487497,37.14197304,148.58,148.5,0.26]
[1642337487694,37.14197304,148.58,148.49,73.74]
[1642337487896,24.5234,148.57,148.49,73.99]
[1642337488194,24.5234,148.57,148.49,0.51]
[1642337488394,24.7734,148.57,148.49,0.51]
[1642337488795,30.7734,148.57,148.49,0.51]
[1642337488996,24.7734,148.57,148.49,0.26]
[1642337491296,0.26,148.56,148.49,0.26]
[1642337492700,0.26,148.56,148.48,6.8417739]
[1642337493400,24.7734,148.57,148.48,6.8417739]
[1642337494000,24.7734,148.57,148.49,0.26]
[1642337494202,0.26,148.56,148.49,0.26]
[1642337497704,24.7734,148.57,148.49,0.26]
[1642337501409,24.7734,148.57,148.55,0.19379335]
[1642337501609,74.06439994,148.56,148.55,0.19379335]
[1642337502009,74.31439994,148.56,148.55,0.19379335]
[1642337502613,24.5234,148.57,148.56,26.39561606]
[1642337502812,1.90854866,148.58,148.56,26.39561606]
[1642337504212,0.07,148.58,148.56,26.39561606]
[1642337504412,0.33,148.58,148.56,26.39561606]
[1642337512223,0.07,148.58,148.56,26.39561606]
[1642337513022,0.07,148.58,148.57,6.06439994]
[1642337513223,47.07,148.58,148.56,26.39561606]
[1642337513624,116.0,148.57,148.55,0.19379335]
[1642337513824,122.07,148.56,148.46,3.81456442]
[1642337514025,146.3389,148.56,148.46,3.81456442]
[1642337514227,0.26,148.55,148.46,3.81456442]
[1642337514454,0.26,148.55,148.48,1.89728615]
[1642337514854,38.01888219,148.55,148.48,20.10323642]
[1642337515256,38.26888219,148.55,148.49,0.26]
[1642337516056,38.26888219,148.55,148.48,18.20595027]
[1642337516261,38.26888219,148.55,148.49,0.26]
[1642337517960,44.26888219,148.55,148.49,0.26]
[1642337519762,38.26888219,148.55,148.49,0.26]
[1642337519962,0.51,148.55,148.49,0.26]
[1642337520362,0.26,148.55,148.49,0.26]
[1642337522767,24.3389,148.56,148.49,0.26]
[1642337529801,24.2689,148.56,148.49,0.26]
[1642337532408,30.2689,148.56,148.49,0.26]
[1642337535017,30.2689,148.56,148.49,2.15728615]
[1642337535411,30.2689,148.56,148.49,2.40728615]
[1642337536513,30.2689,148.56,148.49,2.14728615]
[1642337537519,0.26,148.55,148.49,2.14728615]
[1642337537916,0.26,148.55,148.49,1.89728615]
[1642337538316,0.26,148.55,148.48,87.58323642]
[1642337539017,0.26,148.55,148.48,85.68595027]
[1642337539216,0.26,148.55,148.49,0.26]
[1642337539616,30.2689,148.56,148.49,0.26]
[1642337544952,30.5189,148.56,148.49,0.26]
[1642337546953,30.5189,148.56,148.49,2.15728615]
[1642337547352,30.5189,148.56,148.49,2.40728615]
[1642337561065,30.5189,148.56,148.49,2.14728615]
[1642337561267,0.26,148.55,148.49,2.14728615]
[1642337562370,0.26,148.55,148.5,0.26]
[1642337565973,30.5189,148.56,148.5,0.26]
[1642337574908,0.26,148.55,148.5,0.26]
[1642337575507,30.5189,148.56,148.5,0.26]
[1642337576508,24.5189,148.56,148.5,0.26]
[1642337578009,30.5189,148.56,148.5,0.26]
[1642337578411,0.07,148.58,148.5,0.26]
[1642337578611,4.866e-05,148.59,148.5,23.96007204]
[1642337578813,3.83036992,148.62,148.51,130.18624123]
[1642337579313,3.83036992,148.62,148.52,23.32062878]
[1642337579511,5.68146705,148.66,148.54,67.48]
[1642337579711,9.33595946,148.72,148.57,0.3029645]
[1642337579912,3.83817688,148.66,148.57,0.3029645]
[1642337580114,5.75726532,148.7,148.63,67.48]
[1642337580317,9.33595946,148.77,148.65,0.30395711]
[1642337580614,9.33595946,148.77,148.65,84.07514061]
[1642337580816,0.0001,148.74,148.68,121.0]
[1642337581017,0.0001,148.74,148.69,67.48]
[1642337581217,33.71,148.82,148.69,117.43605184]
[1642337581418,0.07,148.83,148.7,0.26]
[1642337581617,0.07,148.83,148.7,50.21605184]
[1642337581816,36.98296917,148.83,148.71,6.1751707]
[1642337582216,42.98296917,148.83,148.72,0.26]
[1642337583418,42.98296917,148.83,148.69,6.0]
[1642337583419,1.70077588,148.82,148.69,6.0]
[1642337583821,6.0,148.82,148.67,7.09847204]
[1642337584024,6.0,148.82,148.67,74.57847204]
[1642337584222,6.25,148.82,148.68,26.21863235]
[1642337584524,6.25,148.82,148.69,17.38178646]
[1642337584722,6.25,148.82,148.69,42.50194677]
[1642337584922,6.0,148.82,148.7,67.74]
[1642337585121,42.91296917,148.83,148.7,67.74]
[1642337585323,42.91296917,148.83,148.7,73.99]
[1642337585925,0.26,148.82,148.7,73.99]
[1642337587628,42.91296917,148.83,148.71,1.09847204]
[1642337587929,42.41296917,148.83,148.72,6.94303978]
[1642337588442,6.0,148.83,148.73,67.48]
[1642337588730,6.0,148.83,148.73,93.69863235]
[1642337588929,30.412,148.84,148.74,0.26]
[1642337589375,69.96794868,148.84,148.74,0.26]
[1642337589532,24.412,148.84,148.74,1.35847204]
[1642337589730,24.412,148.84,148.74,26.47863235]
[1642337589931,73.4318,148.89,148.75,67.48]
[1642337590332,73.4318,148.89,148.76,0.26]
[1642337590533,67.48,148.85,148.76,16.28331442]
[1642337590732,67.48,148.85,148.75,25.12016031]
[1642337590934,1.70077588,148.84,148.71,92.60016031]
[1642337591132,1.70077588,148.84,148.72,25.12016031]
[1642337591332,6.0,148.84,148.73,67.48]
[1642337591534,6.0,148.84,148.73,77.1265466]
[1642337591735,6.0,148.84,148.74,16.08752659]
[1642337592035,47.85785485,148.86,148.74,46.59738949]
[1642337592235,47.85785485,148.86,148.75,24.2498629]
[1642337592434,47.85785485,148.86,148.76,0.26]
[1642337592834,6.0,148.86,148.77,6.87882761]
[1642337593235,171.46877588,148.92,148.78,0.26]
[1642337593435,171.46877588,148.92,148.78,1.36423453]
[1642337593835,171.46877588,148.92,148.78,6.51]
[1642337594035,46.24834318,148.91,148.78,6.51]
[1642337594237,46.24834318,148.91,148.78,0.51]
[1642337594639,0.26,148.9,148.78,0.51]
[1642337594837,0.26,148.9,148.78,0.26]
[1642337595644,0.26,148.9,148.78,1.36444595]
[1642337595837,0.26,148.9,148.78,1.61444595]
[1642337597064,0.26,148.9,148.78,0.51]
[1642337597265,0.26,148.9,148.78,0.26]
[1642337597464,1.70077588,148.89,148.78,1.10444595]
[1642337597763,39.30726504,148.88,148.77,7.12882761]
[1642337597963,39.56726504,148.88,148.77,7.12882761]
[1642337598164,39.30726504,148.88,148.78,1.10444595]
[1642337598365,45.30726504,148.88,148.78,1.35444595]
[1642337598566,6.0,148.88,148.78,1.35444595]
[1642337598765,6.0,148.88,148.79,67.74]
[1642337598966,6.0,148.92,148.79,67.99]
[1642337599167,85.8689,148.96,148.8,1.10444595]
[1642337599373,22.6947,148.95,148.81,0.26]
[1642337599567,44.89104546,148.94,148.81,16.34752659]
[1642337599966,0.26,148.93,148.81,16.59752659]
[1642337600468,0.26,148.93,148.81,17.70197254]
[1642337600669,0.26,148.93,148.81,16.33752659]
[1642337601871,0.26,148.93,148.82,0.26]
[1642337602269,0.26,148.93,148.81,16.08752659]
[1642337602471,0.26,148.93,148.82,0.26]
[1642337604575,0.26,148.93,148.82,1.36604233]
[1642337604776,0.26,148.93,148.82,0.51]
[1642337605978,0.26,148.93,148.82,1.36604233]
[1642337606177,0.26,148.93,148.82,1.61604233]
[1642337606377,51.14104546,148.94,148.82,69.09604233]
[1642337606580,51.14104546,148.94,148.82,67.74]
[1642337607383,51.14104546,148.94,148.82,0.26]
[1642337607582,51.14104546,148.94,148.82,1.36604233]
[1642337608081,51.14104546,148.94,148.82,1.61604233]
[1642337609283,51.14104546,148.94,148.82,1.35604233]
[1642337609489,50.64104546,148.94,148.82,1.35604233]
[1642337609685,0.26,148.93,148.82,1.35604233]
[1642337610686,0.26,148.93,148.83,0.26]
[1642337611484,0.26,148.93,148.83,1.36604233]
[1642337611685,0.26,148.93,148.84,7.37882761]
[1642337611887,0.26,148.93,148.85,0.26]
[1642337612385,50.39104546,148.94,148.85,0.26]
[1642337612787,50.39104546,148.94,148.84,7.62882761]
[1642337613187,50.64104546,148.94,148.84,7.62882761]
[1642337613788,0.26,148.93,148.84,7.62882761]
[1642337614591,50.64104546,148.94,148.84,7.62882761]
[1642337614794,50.64104546,148.94,148.85,0.26]
[1642337614993,50.39104546,148.94,148.85,0.26]
[1642337615394,50.39104546,148.94,148.84,7.62882761]
[1642337615819,0.26,148.93,148.84,7.62882761]
[1642337616418,50.39104546,148.94,148.85,0.26]
[1642337617424,50.64104546,148.94,148.85,0.26]
[1642337617920,0.26,148.93,148.85,0.26]
[1642337619122,0.26,148.93,148.84,7.62882761]
[1642337620323,0.26,148.93,148.85,0.26]
[1642337620724,50.64104546,148.94,148.85,0.26]
[1642337620922,50.39104546,148.94,148.85,0.26]
[1642337621924,0.26,148.93,148.85,0.26]
[1642337622726,3.0390729,148.91,148.85,0.26]
[1642337622926,9.0390729,148.91,148.85,0.26]
[1642337625427,48.62220038,148.91,148.85,0.26]
[1642337625629,9.0390729,148.91,148.85,0.26]